fUST/lending_fUST_20241111
["ID","MTS","AMOUNT","RATE_DAILY","PERIOD"]
[341898856,1731275432447,-10764.51392088,0.00021,2]
[341898857,1731275432458,-1135.485,0.00021,2]
[341898858,1731275432473,-511.39839475,0.00021,2]
[341898867,1731275437804,-1169.27083333,0.00020894,2]
[341898868,1731275437814,-14546.72916667,0.00021,2]
[341898869,1731275437826,-1177963.14458628,0.00021,2]
[341898870,1731275437836,-1887.01849436,0.00021044,2]
[341898871,1731275437845,-2512.560922,0.00021362,2]
[341898872,1731275437855,-175.43175,0.0002167,2]
[341898873,1731275437865,-155.728,0.00021719,2]
[341898874,1731275437874,-180.417,0.00021811,2]
[341898875,1731275437884,-534.02546574,0.00021918,2]
[341898876,1731275437893,-165.851511,0.00022174,2]
[341898877,1731275437902,-1887.01849433,0.00022187,2]
[341898878,1731275437911,-663.0526242,0.000223,2]
[341898879,1731275437920,-1000.0,0.00022342,2]
[341898880,1731275437930,-1009.31655193,0.00022342,2]
[341898881,1731275437940,-508.37417991,0.00022342,2]
[341898882,1731275437950,-1000.0,0.00022342,2]
[341898883,1731275437959,-1000.0,0.00022342,2]
[341898884,1731275437968,-1000.0,0.00022342,2]
[341898885,1731275437978,-504.95532278,0.00022342,2]
[341898886,1731275437987,-1000.0,0.00022342,2]
[341898887,1731275437996,-399.58,0.0002236,3]
[341898888,1731275438005,-420.0,0.00022813,2]
[341898890,1731275438014,-153.0,0.00023068,2]
[341898891,1731275438024,-153.0,0.00023068,2]
[341898892,1731275438033,-153.0,0.00023068,2]
[341898893,1731275438043,-153.0,0.00023068,2]
[341898894,1731275438053,-153.0,0.00023068,2]
[341898895,1731275438062,-420.0,0.00023069,2]
[341898896,1731275438072,-173.542379,0.00023241,2]
[341898897,1731275438081,-500.0,0.00023265,2]
[341898898,1731275438090,-1887.01849433,0.00023329,2]
[341898899,1731275438100,-259.76,0.00023723,2]
[341898900,1731275438109,-162.213848,0.0002388,2]
[341898901,1731275438118,-465.47486251,0.00023906,2]
[341898902,1731275438128,-162.213848,0.00024,2]
[341898903,1731275438137,-153.0,0.00024027,2]
[341898904,1731275438146,-153.0,0.00024027,2]
[341898905,1731275438156,-153.0,0.00024027,2]
[341898906,1731275438166,-153.0,0.00024027,2]
[341898907,1731275438175,-153.0,0.00024027,2]
[341898908,1731275438184,-153.0,0.00024027,2]
[341898909,1731275438193,-153.0,0.00024027,2]
[341898910,1731275438202,-306.0,0.00024027,2]
[341898911,1731275438211,-153.0,0.00024027,2]
[341898912,1731275438220,-153.0,0.00024027,2]
[341898913,1731275438229,-153.0,0.00024027,2]
[341898914,1731275438239,-153.0,0.00024027,2]
[341898915,1731275438248,-153.0,0.00024027,2]
[341898916,1731275438257,-153.0,0.00024027,2]
[341898917,1731275438267,-153.0,0.00024027,2]
[341898918,1731275438278,-454.630352,0.00024027,2]
[341898919,1731275438288,-1887.01849433,0.00024472,2]
[341898920,1731275438297,-500.0,0.00024489,2]
[341898921,1731275438306,-150.0,0.000245,2]
[341898922,1731275438316,-287.5025293,0.00024557,2]
[341898923,1731275438325,-238.754556,0.00024657,7]
[341898924,1731275438334,-238.754556,0.00024657,7]
[341898925,1731275438344,-500.0,0.00024657,2]
[341898926,1731275438353,-500.0,0.00024657,2]
[341898927,1731275438362,-500.0,0.00024657,2]
[341898928,1731275438371,-563.22933143,0.00024657,2]
[341898929,1731275438380,-500.0,0.00024657,2]
[341898930,1731275438389,-500.0,0.00024657,2]
[341898931,1731275438398,-503.8722551,0.00024657,2]
[341898932,1731275438407,-500.0,0.00024657,2]
[341898933,1731275438416,-500.0,0.00024657,2]
[341898934,1731275438425,-500.0,0.00024657,2]
[341898935,1731275438434,-500.0,0.00024657,2]
[341898936,1731275438443,-500.0,0.00024657,2]
[341898937,1731275438453,-500.0,0.00024657,2]
[341898938,1731275438462,-500.0,0.00024657,2]
[341898939,1731275438480,-564.02354214,0.00024657,2]
[341898940,1731275438489,-508.1523802,0.00024657,2]
[341898941,1731275438498,-500.0,0.00024657,2]
[341898942,1731275438507,-500.0,0.00024657,2]
[341898943,1731275438516,-273.62605032,0.00024657,2]
[341898944,1731275438527,-513.68137765,0.00024657,2]
[341898945,1731275438536,-500.0,0.00024657,2]
[341898946,1731275438545,-500.0,0.00024657,2]
[341898947,1731275438554,-500.0,0.00024657,2]
[341898948,1731275438564,-500.0,0.00024657,2]
[341898949,1731275438574,-500.0,0.00024657,2]
[341898950,1731275438583,-500.0,0.00024657,2]
[341898951,1731275438592,-500.0,0.00024657,2]
[341898952,1731275438602,-381.62202107,0.00024657,2]
[341898953,1731275438611,-500.0,0.00024657,2]
[341898954,1731275438620,-500.0,0.00024657,2]
[341898955,1731275438629,-500.0,0.00024657,2]
[341898956,1731275438638,-500.0,0.00024657,2]
[341898957,1731275438647,-500.0,0.00024657,2]
[341898958,1731275438656,-500.0,0.00024657,2]
[341898959,1731275438665,-500.0,0.00024657,2]
[341898960,1731275438674,-500.0,0.00024657,2]
[341898961,1731275438683,-500.0,0.00024657,2]
[341898962,1731275438889,-500.0,0.00024657,2]
[341898963,1731275438899,-500.0,0.00024657,2]
[341898964,1731275438909,-500.0,0.00024657,2]
[341898965,1731275438918,-500.0,0.00024657,2]
[341898966,1731275438927,-500.0,0.00024657,2]
[341898967,1731275438936,-500.0,0.00024657,2]
[341898968,1731275438945,-503.23651344,0.00024657,2]
[341898969,1731275438955,-514.02109796,0.00024657,2]
[341898970,1731275438964,-500.0,0.00024657,2]
[341898971,1731275438974,-500.0,0.00024657,2]
[341898972,1731275438983,-500.0,0.00024657,2]
[341898973,1731275438992,-500.0,0.00024657,2]
[341898974,1731275439002,-512.23,0.00024657,2]
[341898975,1731275439011,-500.0,0.00024657,2]
[341898976,1731275439020,-500.0,0.00024657,2]
[341898977,1731275439031,-500.0,0.00024657,2]
[341898978,1731275439040,-500.0,0.00024657,2]
[341898979,1731275439049,-500.0,0.00024657,2]
[341898980,1731275439058,-500.0,0.00024657,2]
[341898981,1731275439068,-250.0,0.00024657,2]
[341898982,1731275439077,-500.0,0.00024657,2]
[341898983,1731275439086,-500.0,0.00024657,2]
[341898984,1731275439095,-500.0,0.00024657,2]
[341898985,1731275439104,-500.0,0.00024657,2]
[341898986,1731275439113,-500.0,0.00024657,2]
[341898987,1731275439123,-157.61802115,0.00024657,2]
[341898988,1731275439132,-500.0,0.00024657,2]
[341898989,1731275439141,-500.0,0.00024657,2]
[341898990,1731275439150,-500.0,0.00024657,2]
[341898991,1731275439160,-500.0,0.00024657,2]
[341898992,1731275439169,-500.0,0.00024657,2]
[341898993,1731275439178,-500.0,0.00024657,2]
[341898995,1731275439187,-500.0,0.00024657,2]
[341898997,1731275439196,-500.0,0.00024657,2]
[341898998,1731275439206,-500.0,0.00024657,2]
[341898999,1731275439215,-500.0,0.00024657,2]
[341899000,1731275439223,-500.0,0.00024657,2]
[341899001,1731275439232,-506.92795942,0.00024657,2]
[341899003,1731275439241,-500.0,0.00024657,2]
[341899005,1731275439250,-596.07390242,0.00024657,2]
[341899006,1731275439260,-479.79454138,0.00024657,2]
[341899007,1731275439269,-188.23831278,0.00024657,2]
[341899008,1731275439281,-500.0,0.00024657,2]
[341899009,1731275439290,-500.0,0.00024657,2]
[341899010,1731275439299,-774.27,0.00024657,2]
[341899011,1731275439308,-500.0,0.00024657,2]
[341899013,1731275439318,-512.62,0.00024657,2]
[341899015,1731275439327,-500.0,0.00024657,2]
[341899016,1731275439336,-500.0,0.00024657,2]
[341899017,1731275439346,-500.0,0.00024657,2]
[341899018,1731275439355,-500.0,0.00024657,2]
[341899019,1731275439364,-500.0,0.00024657,2]
[341899020,1731275439373,-500.0,0.00024657,2]
[341899021,1731275439382,-500.0,0.00024657,2]
[341899022,1731275439391,-614.22243087,0.00024657,2]
[341899023,1731275439400,-500.0,0.00024657,2]
[341899024,1731275439409,-541.66,0.00024657,2]
[341899025,1731275439418,-597.91740992,0.00024657,2]
[341899026,1731275439427,-500.0,0.00024657,2]
[341899027,1731275439436,-500.0,0.00024657,2]
[341899028,1731275439445,-500.0,0.00024657,2]
[341899029,1731275439454,-500.0,0.00024657,2]
[341899031,1731275439463,-574.79490834,0.00024657,2]
[341899032,1731275439472,-500.0,0.00024657,2]
[341899033,1731275439482,-500.0,0.00024657,2]
[341899035,1731275439491,-500.0,0.00024657,2]
[341899036,1731275439500,-500.0,0.00024657,2]
[341899037,1731275439509,-500.0,0.00024657,2]
[341899038,1731275439518,-500.0,0.00024657,2]
[341899039,1731275439529,-1074.93,0.00024657,2]
[341899040,1731275439538,-500.0,0.00024657,2]
[341899041,1731275439547,-528.7526415,0.00024657,2]
[341899042,1731275439557,-500.0,0.00024657,2]
[341899043,1731275439567,-500.0,0.00024657,2]
[341899044,1731275439576,-500.0,0.00024657,2]
[341899045,1731275439586,-500.0,0.00024657,2]
[341899047,1731275439595,-1410.55,0.00024657,2]
[341899048,1731275439604,-558.77200591,0.00024657,2]
[341899050,1731275439613,-500.0,0.00024657,2]
[341899052,1731275439622,-500.0,0.00024657,2]
[341899054,1731275439631,-500.0,0.00024657,2]
[341899056,1731275439640,-586.04880438,0.00024657,2]
[341899057,1731275439650,-815.49,0.00024657,2]
[341899058,1731275439659,-1000.0,0.00024657,2]
[341899059,1731275439668,-500.0,0.00024657,2]
[341899060,1731275439677,-560.30079288,0.00024657,2]
[341899061,1731275439689,-500.0,0.00024657,2]
[341899062,1731275439699,-500.0,0.00024657,2]
[341899063,1731275439708,-500.0,0.00024657,2]
[341899064,1731275439717,-168.06368299,0.00024657,2]
[341899065,1731275439727,-563.01621406,0.00024657,2]
[341899066,1731275439736,-500.0,0.00024657,2]
[341899067,1731275439746,-403.22672204,0.00024657,2]
[341899068,1731275439755,-500.0,0.00024657,2]
[341899069,1731275439764,-500.0,0.00024657,2]
[341899070,1731275439774,-500.0,0.00024657,2]
[341899071,1731275439785,-500.0,0.00024657,2]
[341899072,1731275439795,-500.0,0.00024657,2]
[341899073,1731275439805,-501.67,0.00024657,2]
[341899074,1731275439814,-500.0,0.00024657,2]
[341899075,1731275439824,-500.0,0.00024657,2]
[341899076,1731275439834,-500.0,0.00024657,2]
[341899077,1731275439843,-500.0,0.00024657,2]
[341899078,1731275439851,-500.0,0.00024657,2]
[341899079,1731275439861,-516.60499647,0.00024657,2]
[341899080,1731275439871,-592.84,0.00024657,2]
[341899081,1731275439880,-500.0,0.00024657,2]
[341899082,1731275439889,-500.0,0.00024657,2]
[341899083,1731275439899,-500.0,0.00024657,2]
[341899084,1731275439908,-500.0,0.00024657,2]
[341899085,1731275439917,-500.0,0.00024657,2]
[341899086,1731275439926,-500.0,0.00024657,2]
[341899087,1731275439935,-500.0,0.00024657,2]
[341899088,1731275439945,-500.0,0.00024657,2]
[341899089,1731275439954,-532.89212309,0.00024657,2]
[341899090,1731275439964,-452.83413451,0.00024657,2]
[341899091,1731275439973,-930.79,0.00024657,2]
[341899092,1731275439982,-500.0,0.00024657,2]
[341899093,1731275439992,-500.0,0.00024657,2]
[341899094,1731275440001,-2336.0,0.00024657,2]
[341899095,1731275440010,-500.0,0.00024657,2]
[341899096,1731275440019,-500.0,0.00024657,2]
[341899097,1731275440029,-768.52,0.00024657,2]
[341899098,1731275440038,-500.0,0.00024657,2]
[341899099,1731275440048,-500.0,0.00024657,2]
[341899100,1731275440057,-500.0,0.00024657,2]
[341899101,1731275440067,-500.0,0.00024657,2]
[341899102,1731275440076,-500.0,0.00024657,2]
[341899103,1731275440085,-500.0,0.00024657,2]
[341899104,1731275440094,-500.0,0.00024657,2]
[341899105,1731275440102,-502.447653,0.00024657,2]
[341899106,1731275440111,-500.0,0.00024657,2]
[341899107,1731275440120,-500.0,0.00024657,2]
[341899108,1731275440129,-377.3557816,0.00024657,2]
[341899109,1731275440138,-500.0,0.00024657,2]
[341899110,1731275440147,-500.0,0.00024657,2]
[341899111,1731275440156,-500.0,0.00024657,2]
[341899112,1731275440165,-500.0,0.00024657,2]
[341899113,1731275440174,-500.0,0.00024657,2]
[341899114,1731275440183,-502.53130403,0.00024657,2]
[341899115,1731275440192,-500.0,0.00024657,2]
[341899116,1731275440201,-500.0,0.00024657,2]
[341899117,1731275440210,-500.8,0.00024657,2]
[341899118,1731275440219,-570.15598667,0.00024657,2]
[341899119,1731275440228,-500.0,0.00024657,2]
[341899120,1731275440237,-500.0,0.00024657,2]
[341899121,1731275440246,-500.0,0.00024657,2]
[341899122,1731275440255,-500.0,0.00024657,2]
[341899123,1731275440265,-500.0,0.00024657,2]
[341899124,1731275440275,-500.0,0.00024657,2]
[341899125,1731275440287,-500.0,0.00024657,2]
[341899126,1731275440296,-500.0,0.00024657,2]
[341899127,1731275440305,-500.0,0.00024657,2]
[341899128,1731275440314,-500.0,0.00024657,2]
[341899129,1731275440323,-500.0,0.00024657,2]
[341899130,1731275440332,-500.0,0.00024657,2]
[341899131,1731275440341,-525.43427607,0.00024657,2]
[341899132,1731275440350,-518.03890353,0.00024657,2]
[341899133,1731275440359,-546.64974157,0.00024657,2]
[341899134,1731275440368,-500.0,0.00024657,2]
[341899135,1731275440377,-500.0,0.00024657,2]
[341899136,1731275440386,-500.0,0.00024657,2]
[341899137,1731275440395,-500.0,0.00024657,2]
[341899138,1731275440404,-502.25495837,0.00024657,2]
[341899139,1731275440413,-489.61542963,0.00024657,2]
[341899140,1731275440422,-500.0,0.00024657,2]
[341899141,1731275440431,-500.0,0.00024657,2]
[341899142,1731275440440,-500.0,0.00024657,2]
[341899143,1731275440449,-602.57,0.00024657,2]
[341899144,1731275440458,-200.0,0.00024657,2]
[341899145,1731275440467,-500.0,0.00024657,2]
[341899146,1731275440476,-500.0,0.00024657,2]
[341899147,1731275440485,-500.0,0.00024657,2]
[341899148,1731275440494,-1002.4,0.00024657,2]
[341899149,1731275440504,-500.0,0.00024657,2]
[341899150,1731275440513,-1035.7,0.00024657,2]
[341899151,1731275440524,-500.0,0.00024657,2]
[341899152,1731275440534,-2715.5,0.00024657,2]
[341899153,1731275440543,-500.0,0.00024657,2]
[341899154,1731275440552,-500.0,0.00024657,2]
[341899155,1731275440562,-500.0,0.00024657,2]
[341899156,1731275440571,-432.36814768,0.00024657,2]
[341899157,1731275440580,-500.0,0.00024657,2]
[341899158,1731275440589,-868.1,0.00024657,2]
[341899159,1731275440599,-500.0,0.00024657,2]
[341899160,1731275440608,-500.0,0.00024657,2]
[341899161,1731275440617,-500.0,0.00024657,2]
[341899162,1731275440627,-500.0,0.00024657,2]
[341899163,1731275440636,-500.0,0.00024657,2]
[341899164,1731275440645,-624.77,0.00024657,2]
[341899165,1731275440654,-1537.69,0.00024657,2]
[341899166,1731275440664,-25631.96,0.00024657,2]
[341899167,1731275440673,-181.39785902,0.00024657,2]
[341899168,1731275440683,-500.0,0.00024657,2]
[341899169,1731275440692,-500.0,0.00024657,2]
[341899170,1731275440701,-500.0,0.00024657,2]
[341899171,1731275440710,-500.0,0.00024657,2]
[341899172,1731275440720,-500.0,0.00024657,2]
[341899173,1731275440730,-644.39053652,0.00024657,2]
[341899174,1731275440739,-500.0,0.00024657,2]
[341899175,1731275440749,-500.0,0.00024657,2]
[341899176,1731275440758,-588.45579066,0.00024657,2]
[341899177,1731275440768,-500.0,0.00024657,2]
[341899178,1731275440780,-500.0,0.00024657,2]
[341899179,1731275440791,-500.0,0.00024657,2]
[341899180,1731275440801,-1307.78,0.00024657,2]
[341899181,1731275440812,-500.0,0.00024657,2]
[341899182,1731275440822,-500.0,0.00024657,2]
[341899183,1731275440832,-500.0,0.00024657,2]
[341899184,1731275440842,-500.0,0.00024657,2]
[341899185,1731275440851,-500.0,0.00024657,2]
[341899186,1731275440861,-911.46,0.00024657,2]
[341899187,1731275440873,-500.0,0.00024657,2]
[341899188,1731275440883,-5623.61,0.00024657,2]
[341899189,1731275440893,-500.0,0.00024657,2]
[341899190,1731275440902,-2188.38,0.00024657,2]
[341899191,1731275440912,-1502.41,0.00024657,2]
[341899192,1731275440921,-500.0,0.00024657,2]
[341899193,1731275440931,-4751.46,0.00024657,2]
[341899194,1731275440940,-858.74,0.00024657,2]
[341899195,1731275440949,-500.0,0.00024657,2]
[341899196,1731275440959,-500.0,0.00024657,2]
[341899197,1731275440968,-500.0,0.00024657,2]
[341899198,1731275440977,-500.0,0.00024657,2]
[341899199,1731275440987,-500.0,0.00024657,2]
[341899200,1731275440996,-538.07330671,0.00024657,2]
[341899201,1731275441006,-625.15,0.00024657,2]
[341899202,1731275441016,-500.0,0.00024657,2]
[341899203,1731275441027,-500.0,0.00024657,2]
[341899204,1731275441036,-2666.52,0.00024657,2]
[341899205,1731275441045,-500.0,0.00024657,2]
[341899206,1731275441055,-780.92,0.00024657,2]
[341899207,1731275441064,-500.0,0.00024657,2]
[341899208,1731275441074,-500.0,0.00024657,2]
[341899209,1731275441083,-500.0,0.00024657,2]
[341899210,1731275441093,-444.6728296,0.00024657,2]
[341899211,1731275441102,-500.0,0.00024657,2]
[341899212,1731275441111,-506.66092593,0.00024657,2]
[341899213,1731275441120,-5355.47,0.00024657,2]
[341899214,1731275441129,-5355.47,0.00024657,2]
[341899215,1731275441139,-5355.47,0.00024657,2]
[341899216,1731275441148,-500.0,0.00024657,2]
[341899217,1731275441157,-5355.47,0.00024657,2]
[341899218,1731275441167,-5355.47,0.00024657,2]
[341899219,1731275441176,-500.0,0.00024657,2]
[341899220,1731275441185,-5355.47,0.00024657,2]
[341899221,1731275441194,-500.0,0.00024657,2]
[341899222,1731275441203,-5355.47,0.00024657,2]
[341899223,1731275441212,-5355.47,0.00024657,2]
[341899224,1731275441221,-5355.47,0.00024657,2]
[341899225,1731275441230,-5355.47,0.00024657,2]
[341899226,1731275441240,-5355.47,0.00024657,2]
[341899227,1731275441249,-5355.47,0.00024657,2]
[341899228,1731275441258,-5355.47,0.00024657,2]
[341899229,1731275441267,-5355.47,0.00024657,2]
[341899230,1731275441277,-531.84291197,0.00024657,2]
[341899231,1731275441286,-5355.47,0.00024657,2]
[341899232,1731275441295,-5355.47,0.00024657,2]
[341899233,1731275441304,-5355.47,0.00024657,2]
[341899234,1731275441313,-5355.47,0.00024657,2]
[341899235,1731275441322,-5355.47,0.00024657,2]
[341899236,1731275441331,-5355.47,0.00024657,2]
[341899237,1731275441340,-5355.47,0.00024657,2]
[341899238,1731275441350,-5355.47,0.00024657,2]
[341899239,1731275441360,-5355.47,0.00024657,2]
[341899240,1731275441369,-5355.58482497,0.00024657,2]
[341899241,1731275441378,-500.0,0.00024657,2]
[341899242,1731275441387,-505.22498324,0.00024657,2]
[341899243,1731275441396,-500.0,0.00024657,2]
[341899244,1731275441405,-500.0,0.00024657,2]
[341899245,1731275441416,-500.0,0.00024657,2]
[341899246,1731275441425,-500.0,0.00024657,2]
[341899247,1731275441434,-602.34662103,0.00024657,2]
[341899248,1731275441443,-500.0,0.00024657,2]
[341899249,1731275441452,-500.0,0.00024657,2]
[341899250,1731275441461,-200.0,0.00024657,2]
[341899251,1731275441471,-531.04840918,0.00024657,2]
[341899252,1731275441480,-586.78625986,0.00024657,2]
[341899253,1731275441490,-500.0,0.00024657,2]
[341899254,1731275441498,-211.55453174,0.00024657,2]
[341899255,1731275441507,-506.22415489,0.00024657,2]
[341899256,1731275441516,-500.0,0.00024657,2]
[341899257,1731275441529,-2094.39,0.00024657,2]
[341899258,1731275441538,-500.0,0.00024657,2]
[341899259,1731275441548,-4194.02,0.00024657,2]
[341899260,1731275441557,-500.0,0.00024657,2]
[341899261,1731275441566,-500.0,0.00024657,2]
[341899262,1731275441576,-500.0,0.00024657,2]
[341899263,1731275441585,-164.91554882,0.00024657,2]
[341899264,1731275441594,-500.0,0.00024657,2]
[341899265,1731275441603,-500.0,0.00024657,2]
[341899266,1731275441613,-1632.32,0.00024657,2]
[341899267,1731275441623,-1548.26,0.00024657,2]
[341899268,1731275441631,-665.29,0.00024657,2]
[341899269,1731275441642,-2511.37,0.00024657,2]
[341899270,1731275441651,-500.0,0.00024657,2]
[341899271,1731275441660,-517.25868287,0.00024657,2]
[341899272,1731275441670,-500.0,0.00024657,2]
[341899273,1731275441679,-500.0,0.00024657,2]
[341899274,1731275441688,-200.0,0.00024657,2]
[341899275,1731275441697,-500.0,0.00024657,2]
[341899276,1731275441707,-500.0,0.00024657,2]
[341899277,1731275441715,-500.0,0.00024657,2]
[341899278,1731275441725,-500.0,0.00024657,2]
[341899279,1731275441734,-500.0,0.00024657,2]
[341899280,1731275441744,-500.0,0.00024657,2]
[341899281,1731275441753,-945.35,0.00024657,2]
[341899282,1731275441763,-500.0,0.00024657,2]
[341899283,1731275441775,-1746.47,0.00024657,2]
[341899284,1731275441786,-500.0,0.00024657,2]
[341899285,1731275441799,-500.0,0.00024657,2]
[341899286,1731275441808,-573.94,0.00024657,2]
[341899287,1731275441818,-558.21,0.00024657,2]
[341899288,1731275441827,-569.69,0.00024657,2]
[341899289,1731275441837,-1685.16,0.00024657,2]
[341899290,1731275441846,-500.0,0.00024657,2]
[341899291,1731275441855,-500.0,0.00024657,2]
[341899292,1731275441865,-500.0,0.00024657,2]
[341899293,1731275441874,-512.62301425,0.00024657,2]
[341899294,1731275441884,-988.87,0.00024657,2]
[341899295,1731275441893,-500.0,0.00024657,2]
[341899296,1731275441902,-500.0,0.00024657,2]
[341899297,1731275441911,-576.65038489,0.00024657,2]
[341899298,1731275441920,-500.0,0.00024657,2]
[341899299,1731275441930,-500.0,0.00024657,2]
[341899300,1731275441939,-500.0,0.00024657,2]
[341899301,1731275441948,-500.0,0.00024657,2]
[341899302,1731275441958,-500.0,0.00024657,2]
[341899303,1731275441967,-2007.57,0.00024657,2]
[341899304,1731275441976,-500.0,0.00024657,2]
[341899305,1731275441985,-500.0,0.00024657,2]
[341899306,1731275441995,-841.88,0.00024657,2]
[341899307,1731275442004,-529.83393222,0.00024657,2]
[341899308,1731275442013,-500.0,0.00024657,2]
[341899309,1731275442026,-486.92443171,0.00024657,2]
[341899310,1731275442035,-514.32867423,0.00024657,2]
[341899311,1731275442044,-500.0,0.00024657,2]
[341899312,1731275442054,-325.24451425,0.00024657,2]
[341899313,1731275442063,-500.0,0.00024657,2]
[341899314,1731275442072,-500.0,0.00024657,2]
[341899315,1731275442082,-1389.72,0.00024657,2]
[341899316,1731275442091,-500.0,0.00024657,2]
[341899317,1731275442101,-500.0,0.00024657,2]
[341899318,1731275442110,-514.53,0.00024657,2]
[341899319,1731275442119,-500.0,0.00024657,2]
[341899320,1731275442128,-500.0,0.00024657,2]
[341899321,1731275442138,-522.36657335,0.00024657,2]
[341899322,1731275442147,-500.0,0.00024657,2]
[341899323,1731275442157,-1749.33,0.00024657,2]
[341899324,1731275442166,-500.0,0.00024657,2]
[341899325,1731275442176,-650.98,0.00024657,2]
[341899326,1731275442186,-500.0,0.00024657,2]
[341899327,1731275442195,-500.0,0.00024657,2]
[341899328,1731275442204,-500.0,0.00024657,2]
[341899329,1731275442213,-596.99,0.00024657,2]
[341899330,1731275442222,-349.67472227,0.00024657,2]
[341899331,1731275442232,-2036.15,0.00024657,2]
[341899332,1731275442241,-500.0,0.00024657,2]
[341899333,1731275442251,-527.65281755,0.00024657,2]
[341899334,1731275442260,-500.0,0.00024657,2]
[341899335,1731275442269,-500.0,0.00024657,2]
[341899336,1731275442281,-500.0,0.00024657,2]
[341899337,1731275442290,-500.0,0.00024657,2]
[341899338,1731275442299,-500.0,0.00024657,2]
[341899339,1731275442309,-500.0,0.00024657,2]
[341899340,1731275442318,-500.0,0.00024657,2]
[341899341,1731275442328,-500.0,0.00024657,2]
[341899342,1731275442337,-517.12882854,0.00024657,2]
[341899343,1731275442346,-567.0,0.00024657,2]
[341899344,1731275442355,-500.0,0.00024657,2]
[341899345,1731275442364,-500.0,0.00024657,2]
[341899347,1731275442373,-500.0,0.00024657,2]
[341899349,1731275442382,-150.0,0.00024658,2]
[341899350,1731275442391,-380.0,0.00024658,2]
[341899351,1731275442400,-161.7190428,0.00024658,4]
[341899352,1731275442409,-500.0,0.00024658,2]
[341899353,1731275442418,-500.0,0.00024658,2]
[341899355,1731275442427,-500.0,0.00024658,2]
[341899356,1731275442436,-500.0,0.00024658,2]
[341899358,1731275442445,-510.34670311,0.00024658,2]
[341899359,1731275442455,-500.0,0.00024658,2]
[341899360,1731275442464,-500.0,0.00024658,2]
[341899361,1731275442473,-500.0,0.00024658,2]
[341899362,1731275442482,-500.0,0.00024658,2]
[341899363,1731275442492,-500.0,0.00024658,2]
[341899364,1731275442501,-500.0,0.00024658,2]
[341899365,1731275442511,-200.68510849,0.00024658,2]
[341899366,1731275442520,-500.0,0.00024658,2]
[341899367,1731275442532,-500.0,0.00024658,2]
[341899368,1731275442542,-500.0,0.00024673,2]
[341899369,1731275442552,-500.0,0.00024673,2]
[341899370,1731275442561,-500.0,0.00024673,2]
[341899371,1731275442571,-500.0,0.00024673,2]
[341899372,1731275442580,-182.68630728,0.00024673,2]
[341899373,1731275442589,-502.56144346,0.00024673,2]
[341899374,1731275442599,-509.47713182,0.00024673,2]
[341899375,1731275442608,-548.69051634,0.00024673,2]
[341899376,1731275442617,-500.0,0.00024673,2]
[341899377,1731275442626,-500.0,0.00024673,2]
[341899378,1731275442635,-500.0,0.00024673,2]
[341899379,1731275442644,-500.0,0.00024673,2]
[341899380,1731275442653,-500.0,0.00024673,2]
[341899381,1731275442662,-500.0,0.00024673,2]